bitfinex/quotes_BTCUSD_20240607
["timestamp","ask_amount","ask_price","bid_price","bid_amount"]
[1717767489258,0.140187,71334.0,71332.0,0.14441893]
[1717767489495,0.140187,71334.0,71333.0,0.00891381]
[1717767492796,0.145187,71334.0,71333.0,0.00891381]
[1717767493186,0.145187,71334.0,71333.0,0.15333274]
[1717767493187,0.005,71334.0,71333.0,0.15333274]
[1717767493581,0.005,71334.0,71333.0,0.56519366]
[1717767494130,0.01651653,71343.0,71335.0,0.02]
[1717767494372,0.140158,71348.0,71337.0,0.02]
[1717767494589,0.0426733,71357.0,71340.0,0.02]
[1717767494590,0.43422945,71357.0,71340.0,0.02]
[1717767494788,0.43422945,71357.0,71341.0,0.315025]
[1717767494789,0.00086,71357.0,71341.0,0.315025]
[1717767495044,0.00086,71357.0,71341.0,0.32420324]
[1717767495257,0.01799091,71356.0,71341.0,0.32420324]
[1717767495384,0.140154,71350.0,71341.0,0.32420324]
[1717767495592,0.140147,71354.0,71342.0,0.02]
[1717767495850,0.140147,71354.0,71343.0,0.17002475]
[1717767496090,0.140147,71354.0,71345.0,0.02]
[1717767496439,0.140147,71354.0,71347.0,0.02]
[1717767496609,0.140147,71354.0,71348.0,0.30571893]
[1717767496812,0.140147,71354.0,71349.0,0.0812]
[1717767497059,0.140147,71354.0,71350.0,0.14441893]
[1717767497207,0.140147,71354.0,71350.0,0.15380643]
[1717767497837,0.00078852,71356.0,71351.0,0.02560566]
[1717767498065,0.00078852,71356.0,71352.0,0.14441893]
[1717767498221,0.00078852,71356.0,71352.0,0.15401189]
[1717767498803,0.00078852,71356.0,71353.0,0.00560518]
[1717767499043,0.00078852,71356.0,71352.0,0.15401189]
[1717767499044,0.00078852,71356.0,71355.0,0.1661]
[1717767499303,0.00078852,71356.0,71355.0,0.464051]
[1717767500473,0.00178852,71356.0,71355.0,0.464051]
[1717767500668,0.00178852,71356.0,71355.0,0.31862737]
[1717767500848,0.00178852,71356.0,71355.0,0.46404623]
[1717767500849,0.00078852,71356.0,71355.0,0.46404623]
[1717767501214,0.00078852,71356.0,71355.0,0.46604623]
[1717767502782,0.00078852,71356.0,71355.0,0.46704623]
[1717767503186,0.00078852,71356.0,71355.0,0.32162737]
[1717767503661,0.00078852,71356.0,71355.0,0.15352737]
[1717767504684,0.00078852,71356.0,71355.0,0.15452737]
[1717767504877,0.00078852,71356.0,71355.0,0.15352737]
[1717767506896,0.00078852,71356.0,71355.0,0.15252737]
[1717767507248,0.00078852,71356.0,71355.0,0.15452737]
[1717767508175,0.14093052,71356.0,71355.0,0.01010844]
[1717767508389,0.14093052,71356.0,71355.0,0.002]
[1717767510139,0.140154,71350.0,71341.0,0.1552]
[1717767510339,0.140154,71350.0,71342.0,0.28985297]
[1717767510591,0.140154,71350.0,71343.0,0.14543404]
[1717767510828,0.140154,71350.0,71344.0,0.28985297]
[1717767511057,0.140154,71350.0,71345.0,0.14543404]
[1717767511208,0.140154,71350.0,71341.0,0.1552]
[1717767511209,0.140154,71350.0,71346.0,0.28985297]
[1717767511412,0.140154,71350.0,71347.0,0.14543404]
[1717767511614,0.140154,71350.0,71346.0,0.14441893]
[1717767511815,0.140154,71350.0,71347.0,0.14543409]
[1717767512014,0.140154,71350.0,71346.0,0.14441893]
[1717767512351,0.140154,71350.0,71347.0,0.14543409]
[1717767512552,0.140154,71350.0,71346.0,0.14441893]
[1717767512753,0.140154,71350.0,71347.0,0.14543409]
[1717767513058,0.00078852,71356.0,71349.0,0.2363]
[1717767513182,0.00078852,71356.0,71350.0,0.14441893]
[1717767513828,0.00678852,71356.0,71355.0,0.001]
[1717767514344,0.14693052,71356.0,71355.0,0.001]
[1717767514497,0.14093052,71356.0,71350.0,0.14441893]
[1717767515141,0.14093052,71356.0,71351.0,0.14542675]
[1717767515347,0.14093052,71356.0,71352.0,0.14441893]
[1717767515544,0.14093052,71356.0,71355.0,0.001]
[1717767515545,0.14693052,71356.0,71355.0,0.001]
[1717767515921,0.14093052,71356.0,71352.0,0.14441893]
[1717767517036,0.14093052,71356.0,71353.0,0.02]
[1717767517256,0.00078852,71356.0,71354.0,0.14441893]
[1717767517408,0.00078852,71356.0,71355.0,0.01]
[1717767517610,0.00078852,71356.0,71355.0,0.14441893]
[1717767518189,0.00078852,71356.0,71355.0,0.30983992]
[1717767519084,0.00078852,71356.0,71355.0,0.30984001]
[1717767519937,0.00078852,71356.0,71355.0,0.32271893]
[1717767520183,0.00078852,71356.0,71355.0,0.46814102]
[1717767520590,0.00278852,71356.0,71355.0,0.46814102]
[1717767520794,0.00278852,71356.0,71355.0,0.32471893]
[1717767521022,0.00078852,71356.0,71355.0,0.33115309]
[1717767521221,0.00078852,71356.0,71355.0,0.47657546]
[1717767524286,0.00078852,71356.0,71355.0,0.47457546]
[1717767524691,0.00078852,71356.0,71355.0,0.47557546]
[1717767525645,0.00078852,71356.0,71355.0,0.47557546]
[1717767525776,0.00078852,71356.0,71355.0,0.45657546]
[1717767525977,0.00078852,71356.0,71355.0,0.47657546]
[1717767526664,0.00078852,71356.0,71355.0,0.47557546]
[1717767526885,0.00078852,71356.0,71355.0,0.45557546]
[1717767527095,0.00078852,71356.0,71355.0,0.47557546]
[1717767527295,0.00078852,71356.0,71355.0,0.47657546]
[1717767532159,0.00078852,71356.0,71355.0,0.29827546]
[1717767532490,0.00078852,71356.0,71355.0,0.31827546]
[1717767533121,0.00078852,71356.0,71355.0,0.31727546]
[1717767533323,0.00078852,71356.0,71355.0,0.31827546]
[1717767534415,0.00078852,71356.0,71355.0,0.31727546]
[1717767539452,0.00078852,71356.0,71355.0,0.31827546]
[1717767540028,0.00078852,71356.0,71355.0,0.29827546]
[1717767541243,0.140138,71358.0,71357.0,87.99835148]
[1717767541444,0.140138,71358.0,71357.0,88.28819278]
[1717767541689,0.140138,71358.0,71357.0,88.29483433]
[1717767543164,0.140138,71358.0,71357.0,88.29583433]
[1717767544687,0.140138,71358.0,71357.0,88.1514154]
[1717767544688,0.221338,71358.0,71357.0,88.1514154]
[1717767545310,0.221338,71358.0,71357.0,0.15306392]
[1717767545501,0.221338,71358.0,71357.0,0.15284053]
[1717767546070,0.221338,71358.0,71357.0,0.15184053]
[1717767549853,0.221338,71358.0,71357.0,0.15284053]
[1717767550065,0.18216924,71361.0,71357.0,0.29725946]
[1717767550266,0.140132,71361.0,71358.0,0.14441893]
[1717767550479,0.140132,71361.0,71359.0,0.02]
[1717767550674,0.140132,71361.0,71360.0,0.14441893]
[1717767551142,0.140132,71361.0,71360.0,0.15106717]
[1717767552647,0.140132,71361.0,71360.0,0.00664824]
[1717767552830,0.140138,71358.0,71357.0,0.001]
[1717767555035,0.140142,71356.0,71354.0,0.000946]
[1717767555435,0.140142,71356.0,71355.0,0.14542269]
[1717767557545,0.140142,71356.0,71355.0,0.14642269]
[1717767557757,0.140142,71356.0,71355.0,0.14736869]
[1717767560059,0.140142,71356.0,71355.0,0.14736524]
[1717767561375,0.140142,71356.0,71355.0,0.14736771]
[1717767563673,0.00086,71358.0,71356.0,0.02]
[1717767563887,0.00086,71358.0,71357.0,0.54544064]
[1717767564077,0.00086,71358.0,71357.0,0.52544064]
[1717767565365,0.00086,71358.0,71357.0,88.44554064]
[1717767566165,0.00086,71358.0,71357.0,88.45399322]
[1717767568906,0.00086,71358.0,71357.0,88.29829322]
[1717767569105,0.140998,71358.0,71357.0,88.15387429]
[1717767571391,0.140998,71358.0,71357.0,0.15387429]
[1717767572238,0.274698,71358.0,71357.0,0.15387429]
[1717767572434,1.36951548,71358.0,71357.0,0.14542171]
[1717767572681,0.0807,71356.0,71355.0,0.000946]
[1717767573000,0.14379049,71356.0,71355.0,0.000946]
[1717767573355,1.06191942,71356.0,71355.0,0.000946]
[1717767573555,1.09882893,71356.0,71355.0,0.000946]
[1717767573757,0.140178,71338.0,71334.0,0.0415508]
[1717767573935,0.140178,71338.0,71335.0,0.14544674]
[1717767574138,0.140178,71338.0,71336.0,0.14544674]
[1717767574335,0.140178,71338.0,71337.0,0.14544674]
[1717767574518,0.140178,71338.0,71337.0,0.15271138]
[1717767575059,0.140178,71338.0,71337.0,0.15537352]
[1717767575878,0.04205692,71353.0,71338.0,0.1574]
[1717767576112,0.04205692,71353.0,71339.0,0.28986567]
[1717767576314,0.44205692,71354.0,71340.0,0.14544674]
[1717767576462,0.140164,71345.0,71341.0,0.28986567]
[1717767576644,0.140164,71345.0,71341.0,0.15433968]
[1717767577957,0.145164,71345.0,71341.0,0.15433968]
[1717767578352,0.140169,71342.0,71341.0,0.00992075]
[1717767578767,0.140174,71340.0,71336.0,0.1652]
[1717767579107,0.140174,71340.0,71337.0,0.29984179]
[1717767579312,0.140174,71340.0,71338.0,0.14545202]
[1717767579542,0.140174,71340.0,71339.0,0.14545202]
[1717767579737,0.140174,71340.0,71339.0,0.15541984]
[1717767580318,0.140166,71344.0,71339.0,0.29983877]
[1717767580516,0.140166,71344.0,71340.0,0.14441893]
[1717767580721,0.80054992,71354.0,71340.0,0.14441893]
[1717767580722,0.140171,71342.0,71340.0,0.14441893]
[1717767580921,0.140171,71342.0,71341.0,0.00996903]
[1717767581098,0.140171,71342.0,71341.0,0.15538796]
[1717767581501,0.140171,71342.0,71341.0,0.17538796]
[1717767581911,0.053,71352.0,71341.0,0.15538796]
[1717767582111,0.758493,71354.0,71341.0,0.15538796]
[1717767582112,0.140164,71345.0,71342.0,0.14441893]
[1717767582313,0.140164,71345.0,71343.0,0.2447]
[1717767582533,0.140164,71345.0,71343.0,0.25466423]
[1717767582742,0.41247839,71349.0,71344.0,0.14441893]
[1717767582939,0.41247839,71349.0,71346.0,0.02]
[1717767583113,0.41247839,71349.0,71347.0,0.14441893]
[1717767583326,0.41247839,71349.0,71347.0,0.15437713]
[1717767583907,0.41247839,71349.0,71348.0,0.1612]
[1717767584118,0.41247839,71349.0,71348.0,0.45105366]
[1717767584323,0.41247839,71349.0,71348.0,0.46101035]
[1717767584520,0.01677839,71349.0,71348.0,0.46101035]
[1717767584726,0.140147,71354.0,71348.0,0.46101035]
[1717767585030,0.140147,71354.0,71349.0,0.28985366]
[1717767585229,0.140147,71354.0,71350.0,0.14543473]
[1717767585432,0.140147,71354.0,71351.0,0.00995216]
[1717767586230,0.140148,71353.0,71351.0,0.00995216]
[1717767588614,0.140148,71353.0,71351.0,0.02995216]
[1717767588929,0.140148,71353.0,71351.0,0.00995216]
[1717767589112,0.140148,71353.0,71351.0,0.02995216]
[1717767589728,0.140148,71353.0,71351.0,0.00995216]
[1717767590388,0.140148,71353.0,71351.0,0.15437109]
[1717767590594,0.140148,71353.0,71351.0,0.14441893]
[1717767590763,0.140148,71353.0,71352.0,0.00993614]
[1717767591955,0.140151,71352.0,71348.0,0.1612]
[1717767592155,0.140151,71352.0,71349.0,0.28984928]
[1717767592413,0.140151,71352.0,71350.0,0.14543035]
[1717767592620,0.412196,71353.0,71334.0,0.04082472]
[1717767592823,0.412196,71353.0,71332.0,0.19190265]
[1717767592824,0.14015,71352.0,71351.0,0.001]
[1717767595218,0.1319,71353.0,71350.0,0.001]
[1717767595434,0.140152,71351.0,71350.0,0.001]
[1717767595840,0.1319,71353.0,71342.0,0.166]
[1717767595841,0.140156,71349.0,71342.0,0.166]
[1717767596079,0.140156,71349.0,71343.0,0.15538151]
[1717767596233,0.140159,71348.0,71343.0,0.15538151]
[1717767596426,0.140159,71348.0,71344.0,0.1454367]
[1717767596651,0.140159,71348.0,71345.0,0.15538072]
[1717767596852,0.140159,71348.0,71346.0,0.1454367]
[1717767597074,0.140159,71348.0,71347.0,0.1553777]
[1717767597549,0.269559,71348.0,71347.0,0.1553777]
[1717767597728,0.269559,71348.0,71347.0,0.009941]
[1717767598110,0.140168,71343.0,71337.0,0.159746]
[1717767598314,0.140168,71343.0,71338.0,0.28986495]
[1717767598518,0.1294,71348.0,71339.0,0.14544602]
[1717767598519,0.14017,71342.0,71339.0,0.14544602]
[1717767598701,0.14017,71342.0,71340.0,0.14544602]
[1717767598896,0.14017,71342.0,71341.0,0.14544602]
[1717767599287,0.14017,71342.0,71341.0,0.15541167]
[1717767601011,0.14017,71342.0,71341.0,0.00996565]
[1717767601207,0.140174,71340.0,71337.0,0.159746]
[1717767601447,0.4,71347.0,71338.0,0.24661735]
[1717767601652,0.14016,71347.0,71342.0,0.02]
[1717767601901,0.14016,71347.0,71337.0,0.000946]
[1717767601902,0.140154,71350.0,71345.0,0.02]
[1717767602104,0.140154,71350.0,71346.0,0.30987282]
[1717767602333,0.140154,71350.0,71347.0,0.14545389]
[1717767602544,0.140154,71350.0,71348.0,0.14545389]
[1717767602749,0.02117066,71352.0,71349.0,0.14545389]
[1717767602955,0.02117066,71352.0,71350.0,0.14543311]
[1717767603161,0.16132066,71352.0,71351.0,0.30483311]
[1717767603370,0.16132066,71352.0,71351.0,0.14543311]
[1717767603594,0.16132066,71352.0,71350.0,0.00996126]
[1717767603801,0.16132066,71352.0,71351.0,0.00995975]
[1717767604011,0.16132066,71352.0,71351.0,0.15539367]
[1717767604240,0.16132066,71352.0,71351.0,0.14543392]
[1717767604456,0.16132066,71352.0,71351.0,0.00829979]
[1717767604882,0.140152,71351.0,71349.0,0.14441893]
[1717767605098,0.140152,71351.0,71350.0,0.14543552]
[1717767605299,0.140152,71351.0,71350.0,0.14543592]
[1717767606169,0.272952,71351.0,71350.0,0.14543592]
[1717767606586,0.272952,71351.0,71345.0,0.001]
[1717767606587,0.1328,71351.0,71345.0,0.001]
[1717767606794,0.01717066,71352.0,71346.0,0.28985785]
[1717767606985,0.02117066,71352.0,71347.0,0.30533892]
[1717767607189,0.004,71352.0,71348.0,0.28985785]
[1717767607310,0.004,71352.0,71349.0,0.14543892]
[1717767607703,0.003,71351.0,71350.0,0.14543892]
[1717767608217,0.143152,71351.0,71350.0,0.14543892]
[1717767608417,0.003,71351.0,71350.0,0.30985785]
[1717767608527,0.003,71351.0,71350.0,0.39225785]
[1717767609066,0.003,71351.0,71350.0,0.37225785]
[1717767609678,0.003,71351.0,71350.0,0.39225785]
[1717767610537,0.003,71351.0,71350.0,0.37225785]
[1717767610912,0.003,71351.0,71350.0,0.25510677]
[1717767611115,0.003,71351.0,71350.0,0.40053114]
[1717767611681,0.004,71352.0,71350.0,0.38053114]
[1717767611891,0.004,71352.0,71351.0,0.14441893]
[1717767612041,0.004,71352.0,71351.0,0.29811787]
[1717767612956,0.004,71352.0,71351.0,0.15369894]
[1717767612957,0.14415,71352.0,71351.0,0.15369894]
[1717767613161,0.14015,71352.0,71351.0,0.15369894]
[1717767613406,0.01762093,71354.0,71351.0,0.29811787]
[1717767613606,0.00086,71354.0,71353.0,0.0972]
[1717767613779,0.00086,71354.0,71353.0,0.3870433]
[1717767613987,0.00086,71354.0,71353.0,0.53546264]
[1717767615017,0.00086,71354.0,71353.0,0.39003827]
[1717767615191,0.00086,71354.0,71353.0,0.53545253]
[1717767618781,0.00086,71354.0,71353.0,0.69505253]
[1717767621041,0.00086,71354.0,71353.0,0.69506346]
[1717767621373,0.00086,71354.0,71353.0,0.31811546]
[1717767622134,0.00086,71354.0,71353.0,0.45826346]
[1717767622306,0.00086,71354.0,71353.0,0.62426346]
[1717767623628,0.00086,71354.0,71353.0,1.20555946]
[1717767623844,0.00086,71354.0,71353.0,1.40755946]
[1717767624158,0.00086,71354.0,71353.0,1.62569724]
[1717767624388,0.00086,71354.0,71353.0,1.90599324]
[1717767624633,0.00086,71354.0,71353.0,1.94757566]
[1717767625221,0.00086,71354.0,71353.0,1.94857566]
[1717767625457,0.00086,71354.0,71353.0,1.90699324]
[1717767625656,0.00086,71354.0,71353.0,1.90793924]
[1717767626240,0.00086,71354.0,71353.0,1.94952166]
[1717767626471,0.00086,71354.0,71353.0,1.90793924]
[1717767626879,0.00086,71354.0,71353.0,2.28823524]
[1717767627132,0.00086,71358.0,71357.0,0.91802]
[1717767627334,0.00086,71358.0,71357.0,2.05502412]
[1717767627541,0.00086,71358.0,71357.0,2.06258812]
[1717767627744,0.00086,71358.0,71357.0,2.2807259]
[1717767627956,0.00086,71362.0,71361.0,1.020662]
[1717767628166,0.00086,71362.0,71361.0,1.27144112]
[1717767628375,0.00086,71362.0,71361.0,1.65926509]
[1717767628755,0.00086,71362.0,71361.0,1.6800885]
[1717767628911,0.00086,71362.0,71361.0,1.65926509]
[1717767629316,0.00086,71362.0,71361.0,1.68226509]
[1717767631257,0.00086,71362.0,71361.0,1.70308742]
[1717767632138,0.00086,71362.0,71361.0,1.80308742]
[1717767632541,0.00086,71362.0,71361.0,1.78226509]
[1717767632866,0.00086,71362.0,71361.0,2.06253009]
[1717767633067,0.00086,71362.0,71361.0,2.28066787]
[1717767633266,0.00864,71385.0,71380.0,0.160095]
[1717767633469,0.00864,71385.0,71380.0,0.69808172]
[1717767636015,0.00864,71385.0,71380.0,0.89808172]
[1717767636216,0.00864,71385.0,71380.0,0.69808172]
[1717767636355,0.00864,71385.0,71380.0,0.89808172]
[1717767637128,0.00864,71385.0,71380.0,0.69808172]
[1717767637284,0.00864,71385.0,71380.0,1.17827172]
[1717767637489,0.00864,71385.0,71380.0,1.58146172]
[1717767640014,0.00864,71385.0,71380.0,1.68146172]
[1717767640258,0.00864,71385.0,71380.0,1.46146172]
[1717767640478,0.00864,71385.0,71380.0,1.68146172]
[1717767640698,0.00864,71385.0,71380.0,1.70225668]
[1717767640902,0.00864,71385.0,71380.0,1.68146172]
[1717767643391,0.00864,71385.0,71380.0,1.69010172]
[1717767644534,0.00864,71385.0,71380.0,1.69110172]
[1717767645758,0.00864,71385.0,71380.0,1.69099593]
[1717767646373,0.00863,71396.0,71391.0,0.02]
[1717767646621,0.00863,71396.0,71391.0,0.44981133]
[1717767646823,0.00863,71396.0,71391.0,0.45642323]
[1717767647112,0.00863,71396.0,71391.0,0.65642323]
[1717767647302,0.00863,71396.0,71391.0,0.45642323]
[1717767648347,0.00863,71396.0,71391.0,0.43642323]
[1717767648601,0.14094,71392.0,71391.0,0.43642323]
[1717767648903,0.14094,71392.0,71391.0,0.29635023]
[1717767649109,0.14094,71392.0,71391.0,0.1519313]
[1717767649955,0.281011,71392.0,71391.0,0.1519313]
[1717767650151,0.281011,71392.0,71391.0,0.0066119]
[1717767650613,0.281011,71392.0,71391.0,0.15196124]
[1717767650979,0.281011,71392.0,71391.0,0.0066119]
[1717767651776,0.281011,71392.0,71391.0,0.15196321]
[1717767652433,0.281011,71392.0,71391.0,0.15196272]
[1717767653412,0.14094,71392.0,71391.0,0.15196272]
[1717767655441,0.14094,71392.0,71391.0,0.22419096]
[1717767656038,0.14094,71392.0,71391.0,0.15196272]
[1717767657154,0.00864,71392.0,71391.0,0.29638165]
[1717767658097,0.00864,71392.0,71391.0,0.31638165]
[1717767658301,0.00864,71392.0,71391.0,0.29638165]
[1717767658523,0.00864,71392.0,71391.0,0.29738165]
[1717767659346,0.148711,71392.0,71391.0,0.15296272]
[1717767659874,0.230111,71392.0,71391.0,0.15296272]
[1717767660325,0.285711,71392.0,71391.0,0.15296272]
[1717767660535,0.565854,71392.0,71391.0,0.15296272]
[1717767660740,1.01041593,71392.0,71391.0,0.15296272]
[1717767660957,0.44022,71391.0,71390.0,83.47134272]
[1717767661160,0.02,71374.0,71366.0,0.02080199]
[1717767661308,0.02,71374.0,71355.0,0.07222824]
[1717767661309,0.02,71374.0,71365.0,0.02080199]
[1717767661512,0.4,71375.0,71362.0,0.02080199]
[1717767661513,0.140125,71365.0,71362.0,0.02080199]
[1717767661710,0.140125,71365.0,71361.0,0.02080199]
[1717767661911,0.140125,71365.0,71356.0,0.02080199]
[1717767661912,0.0757,71364.0,71356.0,0.02080199]
[1717767662094,0.0757,71364.0,71357.0,0.14441893]
[1717767662792,0.0757,71364.0,71353.0,0.02174799]
[1717767662793,0.140146,71354.0,71353.0,0.02174799]
[1717767663007,0.221546,71354.0,71353.0,0.000946]
[1717767663234,0.241546,71354.0,71353.0,0.000946]
[1717767663426,0.221546,71354.0,71353.0,0.000946]
[1717767663786,0.4957,71364.0,71353.0,0.000946]
[1717767663787,0.3957,71364.0,71355.0,0.02]
[1717767664038,0.076,71373.0,71363.0,0.07222824]
[1717767664200,0.076,71380.0,71372.0,0.07222824]
[1717767664406,0.076,71380.0,71373.0,0.14441893]
[1717767665026,0.3957,71381.0,71373.0,0.14441893]
[1717767665695,0.11637,71380.0,71358.0,0.02080199]
[1717767665923,0.140107,71374.0,71359.0,0.14441893]
[1717767666402,0.02,71370.0,71353.0,0.02174799]
[1717767666543,0.140126,71364.0,71354.0,0.14441893]
[1717767668415,0.140126,71364.0,71357.0,0.001]
[1717767668617,0.140126,71364.0,71357.0,0.14541893]
[1717767668819,0.140126,71364.0,71358.0,0.00734531]
[1717767670938,0.4768,71373.0,71359.0,0.21664717]
[1717767671136,0.140113,71371.0,71360.0,0.00737705]
[1717767671340,0.140113,71371.0,71361.0,0.14441893]
[1717767671537,0.140113,71371.0,71362.0,0.19337509]
[1717767671762,0.140113,71371.0,71363.0,0.14441893]
[1717767672295,0.140105,71375.0,71367.0,0.07222824]
[1717767672498,0.140105,71375.0,71364.0,0.00737313]
[1717767672499,0.140105,71375.0,71368.0,0.14441893]
[1717767672730,0.140105,71375.0,71368.0,0.15178814]
[1717767672858,0.140098,71379.0,71368.0,0.15178814]
[1717767673084,0.140098,71379.0,71370.0,0.02]
[1717767673429,0.19,71387.0,71370.0,0.02]
[1717767673430,0.40864,71392.0,71378.0,0.07222824]
[1717767673647,0.40864,71392.0,71381.0,0.02]
[1717767673860,0.40864,71392.0,71382.0,0.14441893]
[1717767674062,0.40864,71392.0,71383.0,0.02]
[1717767674290,0.40864,71392.0,71384.0,0.16441893]
[1717767674509,0.00864,71392.0,71387.0,0.02]
[1717767674721,0.00864,71392.0,71390.0,0.02]
[1717767674936,0.00864,71392.0,71391.0,0.15172169]
[1717767675373,0.00864,71392.0,71391.0,0.17172169]
[1717767675753,0.00864,71392.0,71391.0,0.15172169]
[1717767678389,0.00864,71392.0,71391.0,0.17172169]
[1717767678605,0.00864,71392.0,71391.0,0.15172169]
[1717767679287,0.00864,71392.0,71391.0,0.15272169]
[1717767679495,0.00864,71392.0,71391.0,0.17272169]
[1717767679682,0.00864,71392.0,71391.0,0.15272169]
[1717767681128,0.00864,71392.0,71391.0,0.17272169]
[1717767681287,0.00864,71392.0,71391.0,0.29805524]
[1717767681484,0.00864,71392.0,71391.0,0.15272169]
[1717767682186,0.00864,71392.0,71391.0,0.22494993]
[1717767682385,0.00864,71392.0,71391.0,0.37028201]
[1717767682588,0.00864,71392.0,71391.0,0.39028201]
[1717767682776,0.00864,71392.0,71391.0,0.54798201]
[1717767682977,0.00864,71392.0,71391.0,0.68805501]
[1717767683597,0.00864,71392.0,71391.0,0.54272293]
[1717767684002,0.00864,71392.0,71391.0,0.68805178]
[1717767684812,0.00864,71392.0,71391.0,0.88805178]
[1717767684989,0.00864,71392.0,71391.0,0.71105178]
[1717767685394,0.00864,71392.0,71391.0,0.71205178]
[1717767685816,0.00864,71392.0,71391.0,0.59682354]
[1717767686039,0.00864,71392.0,71391.0,0.37127878]
[1717767686272,0.00864,71392.0,71391.0,0.89005178]
[1717767686563,0.00864,71392.0,71391.0,0.79869178]
[1717767686913,0.00864,71392.0,71391.0,0.88039178]
[1717767687323,0.00864,71392.0,71391.0,1.16053878]
[1717767687679,0.00864,71392.0,71391.0,1.16353878]
[1717767687850,0.00864,71392.0,71391.0,1.18353878]
[1717767688103,0.00864,71392.0,71391.0,0.78816354]
[1717767688302,0.00864,71392.0,71391.0,0.86039178]
[1717767688428,0.00864,71392.0,71391.0,0.88039178]
[1717767689040,0.00864,71392.0,71391.0,0.60646354]
[1717767689245,0.00864,71392.0,71391.0,0.29905054]
[1717767689451,0.00864,71392.0,71391.0,0.15463161]
[1717767689657,0.00864,71392.0,71391.0,0.00930276]
[1717767691417,0.00864,71392.0,71391.0,0.002]
[1717767692647,0.00864,71392.0,71391.0,0.29781893]
[1717767692880,0.00864,71392.0,71391.0,0.30424042]
[1717767693440,0.00864,71392.0,71391.0,0.15284042]
[1717767697595,0.00864,71392.0,71391.0,0.00842149]
[1717767697955,0.00864,71392.0,71391.0,0.002]
[1717767698404,0.00864,71392.0,71391.0,0.14733616]
[1717767698803,0.00864,71392.0,71391.0,0.15375867]
[1717767701364,0.00864,71392.0,71391.0,0.2981776]
[1717767703895,0.00864,71392.0,71391.0,0.4582506]
[1717767704238,0.00864,71392.0,71391.0,0.4382506]
[1717767704570,0.00864,71392.0,71391.0,0.29291444]
[1717767704795,0.00864,71392.0,71391.0,0.43824401]
[1717767705774,0.00864,71392.0,71391.0,0.29817101]
[1717767705920,0.00864,71392.0,71391.0,0.31817101]
[1717767706126,0.00864,71392.0,71391.0,0.29817101]
[1717767707352,0.00864,71392.0,71391.0,0.61604401]
[1717767707536,0.00864,71392.0,71391.0,0.63688651]
[1717767707892,0.00864,71392.0,71391.0,0.61604401]
[1717767708713,0.00864,71392.0,71391.0,0.63689237]
[1717767710449,0.00864,71392.0,71391.0,0.61689237]
[1717767711168,0.00864,71392.0,71391.0,0.43824401]
[1717767711627,0.00864,71392.0,71391.0,0.45908918]
[1717767712658,0.00864,71392.0,71391.0,0.43824401]
[1717767713815,0.00864,71392.0,71391.0,0.29817101]
[1717767716597,0.00864,71392.0,71391.0,0.2917485]
[1717767717042,0.00864,71392.0,71391.0,0.29811764]
[1717767718638,0.00864,71392.0,71391.0,0.15369871]
[1717767719196,0.00864,71392.0,71391.0,0.17454388]
[1717767720043,0.00864,71392.0,71391.0,0.15369871]
[1717767720277,0.00864,71392.0,71391.0,0.17368252]
[1717767720464,0.226611,71392.0,71391.0,0.15269871]
[1717767720658,0.226611,71392.0,71391.0,0.15369871]
[1717767721113,0.08654,71392.0,71391.0,0.15369871]
[1717767721664,0.08654,71392.0,71391.0,0.15269871]
[1717767722109,0.08654,71392.0,71391.0,0.15369871]
[1717767722670,0.08654,71392.0,71391.0,0.15269871]
[1717767722816,0.00864,71392.0,71391.0,0.15269871]
[1717767723378,0.00864,71392.0,71391.0,0.15171324]
[1717767723753,0.00864,71392.0,71391.0,0.15271324]
[1717767724380,0.00864,71392.0,71391.0,0.15270687]
[1717767724582,0.00864,71392.0,71391.0,0.2971258]
[1717767724779,0.02508554,71392.0,71391.0,0.2971258]
[1717767725131,0.00864,71392.0,71391.0,0.2981258]
[1717767726765,0.00864,71392.0,71391.0,0.15278807]
[1717767726975,0.00864,71392.0,71391.0,0.29812813]
[1717767727208,0.00864,71392.0,71391.0,0.15278807]
[1717767727414,0.00864,71392.0,71391.0,0.29812875]
[1717767728195,0.00864,71392.0,71391.0,0.15370982]
[1717767728399,0.229511,71392.0,71391.0,0.15370982]
[1717767728727,0.229511,71392.0,71391.0,0.14734068]
[1717767729100,0.229511,71392.0,71391.0,0.1537181]
[1717767729510,0.229511,71392.0,71391.0,0.1527181]
[1717767730167,0.231511,71392.0,71391.0,0.1527181]
[1717767730784,0.01064,71392.0,71391.0,0.1527181]
[1717767730995,0.00864,71392.0,71391.0,0.1527181]
[1717767731930,0.00864,71392.0,71391.0,0.29713703]
[1717767732165,0.00864,71392.0,71391.0,0.53653703]
[1717767732924,0.00864,71392.0,71391.0,0.53553703]
[1717767733535,0.00864,71392.0,71391.0,0.55553703]
[1717767733741,0.01064,71392.0,71391.0,0.53553703]
[1717767733888,0.01264,71392.0,71391.0,0.57648913]
[1717767734089,0.01264,71392.0,71391.0,0.69561003]
[1717767734497,0.01064,71392.0,71391.0,0.69561003]
[1717767734930,0.00864,71392.0,71391.0,0.67561003]
[1717767735134,0.00864,71392.0,71391.0,0.69561003]
[1717767735531,0.00864,71392.0,71391.0,0.67661003]
[1717767735758,0.00864,71392.0,71391.0,0.69661003]
[1717767735986,0.00864,71392.0,71391.0,0.67661003]
[1717767736897,0.00864,71392.0,71391.0,0.69661003]
[1717767737053,0.01064,71392.0,71391.0,0.69661003]
[1717767737864,0.00864,71392.0,71391.0,0.69661003]
[1717767738703,0.00864,71392.0,71391.0,0.69761003]
[1717767739064,0.00864,71392.0,71391.0,0.69659736]
[1717767739878,0.00864,71392.0,71391.0,0.69759736]
[1717767740086,0.00864,71392.0,71391.0,1.29867133]
[1717767740287,0.00864,71392.0,71391.0,1.29974436]
[1717767740716,0.00864,71392.0,71391.0,1.10074436]
[1717767741261,0.00864,71392.0,71391.0,1.56052447]
[1717767741446,0.00864,71392.0,71391.0,1.72267945]
[1717767741672,0.00864,71392.0,71391.0,1.98245957]
[1717767742298,0.00863,71396.0,71395.0,0.954227]
[1717767742510,0.00863,71396.0,71395.0,1.84768523]
[1717767742747,0.00863,71396.0,71395.0,1.79104196]
[1717767743320,0.00863,71396.0,71395.0,1.57304994]
[1717767743526,0.00863,71396.0,71395.0,1.79104196]